fUSD/lending_fUSD_20250321
["ID","MTS","AMOUNT","RATE_DAILY","PERIOD"]
[356499891,1742561453036,-396.0,0.0002134,2]
[356499892,1742561453045,-257.17608,0.000219,6]
[356499893,1742561453055,-396.0,0.0002191,2]
[356499894,1742561453065,-216.89,0.00021917,2]
[356499895,1742561453075,-500.0,0.00022,2]
[356499896,1742561453085,-233.0,0.000221,2]
[356499897,1742561453094,-150.0,0.00022479,2]
[356499898,1742561453103,-396.0,0.0002248,2]
[356499899,1742561453112,-503.01803702,0.00022831,3]
[356499900,1742561453122,-709.51,0.00023031,2]
[356499901,1742561453131,-396.0,0.0002305,2]
[356499902,1742561453141,-50072.88905604,0.000232,2]
[356499903,1742561453150,-216.89,0.00023287,2]
[356499904,1742561453159,-1614.91676213,0.000235,2]
[356499905,1742561453169,-396.0,0.0002362,2]
[356499906,1742561453178,-1280.0,0.0002376,2]
[356499907,1742561453188,-2035.0,0.0002376,2]
[356499908,1742561453201,-642.0,0.0002376,2]
[356499909,1742561453210,-572.0,0.0002376,2]
[356499910,1742561453220,-1420.0,0.0002376,2]
[356499911,1742561453229,-1272.0,0.0002376,2]
[356499912,1742561453239,-787.0,0.0002376,2]
[356499913,1742561453249,-907.0,0.0002376,2]
[356499914,1742561453258,-4083.0,0.0002376,2]
[356499915,1742561453268,-1430.0,0.0002376,2]
[356499916,1742561453278,-542.0,0.0002376,2]
[356499917,1742561453288,-151.0,0.0002376,2]
[356499918,1742561453298,-1148.692,0.0002376,2]
[356499919,1742561453308,-153.0,0.00023816,2]
[356499920,1742561453317,-383.43,0.00023836,2]
[356499921,1742561453327,-59269.69683705,0.00024,2]
[356499922,1742561453336,-80776.86183896,0.00024,2]
[356499923,1742561453346,-550.0,0.00024,2]
[356499924,1742561453355,-10317.35,0.00024174,2]
[356499925,1742561453364,-8419.64,0.00024174,2]
[356499926,1742561453374,-3932.89,0.00024174,2]
[356499927,1742561453383,-396.0,0.0002419,2]
[356499928,1742561453392,-152.0,0.0002427,3]
[356499929,1742561453402,-151.49831177,0.000244,2]
[356499930,1742561453411,-503.01803702,0.00024486,3]
[356499931,1742561453421,-216.89,0.00024657,2]
[356499932,1742561453430,-1000.0,0.00024658,2]
[356499933,1742561453439,-1000.0,0.0002467,2]
[356499934,1742561453449,-500.0,0.0002467,2]
[356499935,1742561453459,-153.0,0.00024697,2]
[356499936,1742561453469,-153.0,0.00024697,2]
[356499937,1742561453479,-153.0,0.00024697,2]
[356499938,1742561453488,-153.0,0.00024697,2]
[356499939,1742561453498,-153.0,0.00024697,2]
[356499940,1742561453507,-153.0,0.00024697,2]
[356499941,1742561453516,-153.0,0.00024697,2]
[356499942,1742561453526,-153.0,0.00024698,2]
[356499943,1742561453535,-153.0,0.00024698,2]
[356499944,1742561453545,-153.0,0.00024698,2]
[356499945,1742561453555,-153.0,0.00024698,2]
[356499946,1742561453564,-153.0,0.00024698,2]
[356499947,1742561453574,-153.0,0.00024698,2]
[356499948,1742561453583,-153.0,0.00024698,2]
[356499949,1742561453592,-153.0,0.00024698,2]
[356499950,1742561453602,-153.0,0.00024698,2]
[356499951,1742561453611,-153.0,0.00024698,2]
[356499952,1742561453621,-153.0,0.00024698,2]
[356499953,1742561453630,-153.0,0.00024698,2]
[356499954,1742561453639,-153.0,0.00024698,2]
[356499955,1742561453648,-153.0,0.00024698,2]
[356499956,1742561453658,-153.0,0.00024698,2]
[356499957,1742561453667,-153.0,0.00024698,2]
[356499958,1742561453676,-153.0,0.00024698,2]
[356499959,1742561453685,-153.0,0.00024698,2]
[356499960,1742561453695,-153.0,0.00024698,2]
[356499961,1742561453704,-153.0,0.00024698,2]
[356499962,1742561453714,-153.0,0.00024698,2]
[356499963,1742561453724,-153.0,0.00024698,2]
[356499964,1742561453733,-153.0,0.00024698,2]
[356499965,1742561453743,-153.0,0.00024698,2]
[356499966,1742561453752,-153.0,0.00024698,2]
[356499967,1742561453761,-153.0,0.00024698,2]
[356499968,1742561453771,-153.0,0.00024698,2]
[356499969,1742561453780,-153.0,0.00024698,2]
[356499970,1742561453789,-153.0,0.00024698,2]
[356499971,1742561453798,-153.0,0.00024698,2]
[356499972,1742561453807,-153.0,0.00024698,2]
[356499973,1742561453817,-153.0,0.00024698,2]
[356499974,1742561453826,-164.91,0.00024712,30]
[356499975,1742561453835,-396.0,0.0002476,2]
[356499976,1742561453844,-152.0,0.0002486,4]
[356499977,1742561453855,-2668.5848562,0.00024883,2]
[356499978,1742561453864,-564.7873186,0.00024883,2]
[356499979,1742561453874,-1007.75105434,0.00024992,2]
[356499980,1742561453883,-1298.59,0.00025,5]
[356499981,1742561453892,-200.0,0.00025,2]
[356499982,1742561453902,-709.51,0.00025295,2]
[356499983,1742561453911,-396.0,0.0002532,2]
[356499984,1742561453922,-300.0,0.00025353,2]
[356499985,1742561453932,-152.0,0.0002545,5]
[356499986,1742561453942,-150.0,0.00025479,2]
[356499987,1742561453952,-368.0,0.000256,2]
[356499988,1742561453961,-751.0,0.000256,2]
[356499989,1742561453971,-396.0,0.0002589,2]
[356499990,1742561453981,-159.78,0.0002589,2]
[356499991,1742561453990,-600.0,0.00026,2]
[356499992,1742561453999,-216.89,0.00026027,2]
[356499993,1742561454009,-152.0,0.0002604,6]
[356499994,1742561454018,-503.01803702,0.00026141,4]
[356499995,1742561454027,-780.5,0.00026219,2]
[356499996,1742561454037,-780.5,0.00026219,2]
[356499997,1742561454046,-396.0,0.0002646,2]
[356499998,1742561454055,-152.0,0.0002663,7]
[356499999,1742561454065,-1280.0,0.0002676,2]
[356500000,1742561454074,-2035.0,0.0002676,2]
[356500001,1742561454083,-642.0,0.0002676,2]
[356500002,1742561454093,-572.0,0.0002676,2]
[356500003,1742561454102,-1420.0,0.0002676,2]
[356500004,1742561454112,-1272.0,0.0002676,2]
[356500005,1742561454122,-787.0,0.0002676,2]
[356500006,1742561454131,-907.0,0.0002676,2]
[356500007,1742561454142,-4083.0,0.0002676,2]
[356500008,1742561454152,-1430.0,0.0002676,2]
[356500009,1742561454161,-542.0,0.0002676,2]
[356500010,1742561454175,-151.0,0.0002676,2]
[356500011,1742561454185,-453.47,0.00026849,2]
[356500012,1742561454196,-155.63,0.00026849,2]
[356500013,1742561454209,-210.92,0.00026849,2]
[356500014,1742561454219,-257.17608,0.000269,6]
[356500015,1742561454229,-1778.0,0.00027,5]
[356500016,1742561454238,-396.0,0.0002703,2]
[356500017,1742561454249,-152.0,0.0002722,8]
[356500018,1742561454259,-7118.249509,0.00027378,2]
[356500019,1742561454269,-500.0,0.00027397,2]
[356500020,1742561454280,-500.0,0.00027397,2]
[356500021,1742561454290,-500.0,0.00027397,2]
[356500022,1742561454299,-500.0,0.00027397,2]
[356500023,1742561454309,-500.0,0.00027397,2]
[356500024,1742561454319,-500.0,0.00027397,2]
[356500025,1742561454328,-500.0,0.00027397,2]
[356500026,1742561454338,-500.0,0.00027397,2]
[356500027,1742561454348,-610.6420054,0.00027397,2]
[356500028,1742561454357,-500.0,0.00027397,2]
[356500029,1742561454367,-500.0,0.00027397,2]
[356500030,1742561454376,-500.0,0.00027397,2]
[356500031,1742561454386,-594.50803229,0.00027397,2]
[356500032,1742561454395,-500.0,0.00027397,2]
[356500033,1742561454405,-439.41517524,0.00027397,2]
[356500034,1742561454415,-500.0,0.00027397,2]
[356500035,1742561454424,-266.15562261,0.00027397,2]
[356500036,1742561454434,-500.0,0.00027397,2]
[356500037,1742561454444,-170.19592995,0.00027397,2]
[356500038,1742561454454,-216.89,0.00027397,2]
[356500039,1742561454464,-1857.18,0.00027397,2]
[356500040,1742561454474,-709.51,0.00027559,2]
[356500041,1742561454483,-396.0,0.000276,2]
[356500042,1742561454494,-65431.23186799,0.0002778,2]
[356500043,1742561454504,-503.01803702,0.00027797,4]
[356500044,1742561454514,-152.0,0.0002781,9]
[356500045,1742561454524,-165.525957,0.0002795,3]
[356500046,1742561454535,-90254.22942057,0.0002798,2]
[356500047,1742561454545,-521890.89,0.00028,2]
[356500048,1742561454555,-650.0,0.00028,2]
[356500049,1742561454564,-396.0,0.0002817,2]
[356500050,1742561454575,-152.0,0.000284,10]
[356500051,1742561454584,-150.93303007,0.00028419,14]
[356500052,1742561454594,-303.96967499,0.00028541,2]
[356500053,1742561454604,-202.18118035,0.0002858,2]
[356500054,1742561454614,-396.0,0.0002873,2]
[356500055,1742561454623,-216.89,0.00028767,2]
[356500056,1742561454634,-1857.18,0.00028767,2]
[356500057,1742561454643,-151.04,0.00028855,2]
[356500058,1742561454653,-152.0,0.0002899,11]
[356500059,1742561454662,-794457.31,0.00029,10]
[356500060,1742561454672,-70674.76,0.00029,2]
[356500061,1742561454682,-999.99,0.00029009,2]
[356500062,1742561454694,-3019.05,0.00029009,2]
[356500063,1742561454704,-1683.52,0.00029009,2]
[356500064,1742561454713,-150.99,0.00029009,2]
[356500065,1742561454723,-528.182367,0.00029173,120]
[356500066,1742561454732,-170.265067,0.00029173,120]
[356500067,1742561454742,-396.0,0.000293,2]
[356500068,1742561454751,-503.01803702,0.00029452,5]
[356500069,1742561454761,-519.6705473,0.0002948,2]
[356500070,1742561454771,-564.7873186,0.0002948,2]
[356500071,1742561454897,-716694.62010593,0.000295,15]
[356500072,1742561455233,-48433.24989407,0.000295,15]
[356500073,1742561455244,-152.0,0.0002958,12]
[356500074,1742561455254,-155.1475178,0.00029644,2]
[356500075,1742561455263,-1280.0,0.0002976,2]
[356500076,1742561455272,-2035.0,0.0002976,2]
[356500077,1742561455282,-642.0,0.0002976,2]
[356500078,1742561455292,-391.188,0.0002976,2]
[356500079,1742561455302,-1420.0,0.0002976,2]
[356500080,1742561455313,-1272.0,0.0002976,2]
[356500081,1742561455323,-787.0,0.0002976,2]
[356500082,1742561455332,-907.0,0.0002976,2]
[356500083,1742561455343,-4083.0,0.0002976,2]
[356500084,1742561455353,-1430.0,0.0002976,2]
[356500085,1742561455362,-542.0,0.0002976,2]
[356500086,1742561455371,-151.0,0.0002976,2]
[356500087,1742561455380,-4195.93,0.00029815,2]
[356500088,1742561455390,-3705.22,0.00029815,2]
[356500089,1742561455399,-1225.08,0.00029815,2]
[356500090,1742561455409,-634.05,0.00029815,2]
[356500091,1742561455418,-709.51,0.00029823,2]
[356500092,1742561455427,-396.0,0.0002987,2]
[356500093,1742561455436,-6810.8298999,0.00029879,2]
[356500094,1742561455447,-75229.15566588,0.000299,2]
[356500095,1742561455456,-28994.63760789,0.0003,15]
[356500096,1742561455466,-193.32364707,0.0003,2]
[356500097,1742561455474,-2005.19,0.0003,4]
[356500098,1742561455484,-200.0,0.0003,2]
[356500099,1742561455499,-5782.91367546,0.0003,2]
[356500100,1742561455510,-700.0,0.0003,2]
[356500101,1742561455520,-212.0,0.0003,2]
[356500102,1742561455530,-155.1475178,0.00030055,2]
[356500103,1742561455539,-216.89,0.00030136,2]
[356500104,1742561455550,-1857.18,0.00030137,2]
[356500105,1742561455563,-152.0,0.0003017,13]
[356500106,1742561455572,-155.1475178,0.00030438,2]
[356500107,1742561455582,-396.0,0.0003044,2]
[356500108,1742561455591,-227.0,0.0003044,2]
[356500109,1742561455601,-10208.76,0.000305,2]
[356500110,1742561455610,-10208.76,0.000305,2]
[356500111,1742561455620,-10208.76,0.000305,2]
[356500112,1742561455630,-3190.24,0.000305,2]
[356500113,1742561455639,-3190.24,0.000305,2]
[356500114,1742561455649,-3190.24,0.000305,2]
[356500115,1742561455658,-800.73,0.000305,2]
[356500116,1742561455668,-800.73,0.000305,2]
[356500117,1742561455677,-800.73,0.000305,2]
[356500118,1742561455686,-800.73,0.000305,2]
[356500119,1742561455697,-800.73,0.000305,2]
[356500120,1742561455708,-268.3,0.00030577,7]
[356500121,1742561455718,-152.0,0.0003076,14]
[356500122,1742561455728,-155.1475178,0.00030822,2]
[356500123,1742561455738,-3650.28990105,0.000309,3]
[356500124,1742561455748,-1104.03178977,0.00030945,2]
[356500125,1742561455757,-1106.3115778,0.00030945,2]
[356500126,1742561455767,-1000.0,0.0003097,2]
[356500127,1742561455776,-500.0,0.0003097,2]
[356500128,1742561455785,-685090.44374867,0.00030989,14]
[356500129,1742561455795,-5100.0,0.0003099,9]
[356500130,1742561455804,-50000.0,0.00031,21]
[356500131,1742561455814,-12633.79789106,0.00031,2]
[356500132,1742561455827,-3048.02554158,0.00031,2]
[356500133,1742561455839,-4318.17656736,0.00031,2]
[356500134,1742561455848,-2000.0,0.00031,4]
[356500135,1742561455858,-396.0,0.0003101,2]
[356500136,1742561455867,-209.0,0.0003101,30]
[356500137,1742561455877,-227.0,0.0003101,2]
[356500138,1742561455887,-503.01803702,0.00031107,5]
[356500139,1742561455896,-150.0,0.00031207,7]
[356500140,1742561455907,-150.0,0.00031207,7]
[356500141,1742561455916,-150.0,0.00031207,7]
[356500142,1742561455926,-150.0,0.00031207,7]
[356500143,1742561455935,-150.0,0.00031207,7]
[356500144,1742561455948,-150.0,0.00031207,7]
[356500145,1742561455957,-150.0,0.00031207,7]
[356500146,1742561455967,-175.356,0.00031207,7]
[356500147,1742561455983,-5403.07792233,0.0003126,2]
[356500148,1742561455992,-2003.0818,0.00031348,3]
[356500149,1742561456002,-2000.0,0.00031348,3]
[356500150,1742561456012,-152.0,0.0003135,15]
[356500151,1742561456021,-2000.0,0.00031362,3]
[356500152,1742561456031,-922.1007,0.00031419,3]
[356500153,1742561456040,-2000.0,0.00031419,3]
[356500154,1742561456050,-2000.0,0.00031419,3]
[356500155,1742561456059,-1000.0,0.0003147,2]
[356500156,1742561456069,-500.0,0.0003147,2]
[356500157,1742561456216,-1000.0,0.0003147,2]
[356500158,1742561456228,-500.0,0.0003147,2]
[356500159,1742561456241,-900.0,0.00031486,11]
[356500160,1742561456251,-900.0,0.00031486,11]
[356500161,1742561456261,-900.0,0.00031486,11]
[356500162,1742561456270,-900.0,0.00031486,11]
[356500163,1742561456281,-900.0,0.00031486,11]
[356500164,1742561456290,-900.0,0.00031486,11]
[356500165,1742561456299,-900.0,0.00031486,11]
[356500166,1742561456309,-900.0,0.00031486,11]
[356500167,1742561456318,-599.06990962,0.00031486,11]
[356500168,1742561456916,-662.96049407,0.0001185,2]
[356500169,1742561456935,-1427.48897095,0.0001185,2]
[356500170,1742561456946,-151.0,0.00012,2]
[356500171,1742561456957,-151.0,0.00012,2]
[356500172,1742561456970,-1115.0,0.0002376,2]
[356500173,1742561456979,-1115.0,0.0002676,2]
[356500174,1742561456989,-1115.0,0.0002976,2]
[356500175,1742561456998,-300.93009038,0.00031486,11]
[356500176,1742561457008,-900.0,0.00031486,11]
[356500177,1742561457018,-900.0,0.00031486,11]
[356500178,1742561457027,-900.0,0.00031486,11]
[356500179,1742561457037,-900.0,0.00031486,11]
[356500180,1742561457046,-900.0,0.00031486,11]
[356500181,1742561457055,-900.0,0.00031486,11]
[356500182,1742561457065,-900.0,0.00031486,11]
[356500183,1742561457075,-900.0,0.00031486,11]
[356500184,1742561457084,-900.0,0.00031486,11]
[356500185,1742561457093,-900.0,0.00031486,11]
[356500186,1742561457103,-900.0,0.00031486,11]
[356500187,1742561457113,-50000.0,0.0003149,9]
[356500188,1742561457122,-34354.6199278,0.0003149,11]
[356500189,1742561457134,-15645.3800722,0.0003149,11]
[356500190,1742561457143,-50000.0,0.0003149,12]
[356500191,1742561457152,-50000.0,0.0003149,13]
[356500192,1742561457162,-373.54,0.00031491,30]
[356500193,1742561457171,-2337.81496455,0.00031491,2]
[356500194,1742561457180,-2437.57268165,0.00031491,2]
[356500195,1742561457191,-4018.95387726,0.00031491,2]
[356500196,1742561457203,-80330.09254683,0.00031491,2]
[356500197,1742561457212,-2686.0507134,0.00031491,2]
[356500198,1742561457222,-21101.63987878,0.00031491,2]
[356500199,1742561457233,-1985.15825331,0.00031491,2]
[356500200,1742561457247,-405.99934469,0.00031491,2]
[356500218,1742562038066,154.0,0.000201,60]
[356500219,1742562151055,50000.0,0.0003126,30]
[356500221,1742562196997,214.00555964,0.0003126,120]
[356500222,1742562221136,163.73009841,0.0003126,120]
[356500225,1742562589641,12337.1798128,0.0003126,30]
[356500226,1742562625575,453.73842792,0.00025,90]
[356500227,1742562630302,1447.93,0.00023007,120]
[356500239,1742562632111,-350.0,0.00011833,2]
[356500240,1742562632121,-150.0,0.00011837,2]
[356500241,1742562632131,-151.74,0.00011865,2]
[356500242,1742562632140,-150.0,0.00011865,2]
[356500243,1742562632150,-250.0,0.00012,2]
[356500244,1742562632160,-350.0,0.00012237,2]
[356500245,1742562632169,-2806.94165541,0.0001237,2]
[356500246,1742562632181,-2097.98317859,0.0001237,2]
[356500247,1742562632191,-1116.67114393,0.0001288,2]
[356500248,1742562632201,-350.0,0.0001298,2]
[356500249,1742562632211,-150.0,0.00013016,2]
[356500250,1742562632220,-150.0,0.00013016,2]
[356500251,1742562632229,-583.09171681,0.00013441,2]
[356500252,1742562632239,-150.0,0.00013718,2]
[356500253,1742562632248,-300.0,0.00013718,2]
[356500254,1742562632257,-150.0,0.00013719,2]
[356500255,1742562632267,-1280.0,0.00013719,2]
[356500256,1742562632276,-572.10824435,0.00013719,2]
[356500257,1742562632291,-69.89175565,0.00013719,2]
[356500258,1742562632301,-2035.0,0.00013719,2]
[356500259,1742562632311,-1420.0,0.00013719,2]
[356500260,1742562632320,-787.0,0.00013719,2]
[356500261,1742562632329,-1175.23926743,0.00013719,2]
[356500262,1742562632437,-96.76073257,0.00013719,2]
[356500263,1742562632447,-159.08120091,0.00013719,2]
[356500264,1742562632460,-251.86540916,0.00013719,2]
[356500526,1742562638020,-131.05338993,0.00013719,2]
[356500528,1742562638029,-907.0,0.00013719,2]
[356500530,1742562638038,-574.71449977,0.00013719,2]
[356500531,1742562638132,-855.28550023,0.00013719,2]
[356500532,1742562638142,-662.14066388,0.00013719,2]
[356500533,1742562638153,-665.64348248,0.00013719,2]
[356500534,1742562638243,-2087.5,0.00013719,2]
[356500564,1742562643263,-667.71585364,0.00013719,2]
[356500565,1742562643273,-151.0,0.00013719,2]
[356500566,1742562643282,-918.83949848,0.00013719,2]
[356500567,1742562643848,-95.16050152,0.00013719,2]
[356500568,1742562643858,-300.0,0.00014,2]
[356500569,1742562643868,-1115.0,0.00014091,2]
[356500570,1742562643877,-255.0,0.00014829,2]
[356500571,1742562643887,-150.0,0.00014865,2]
[356500573,1742562643896,-152.67189729,0.000149,2]
[356500575,1742562643905,-152.67189728,0.000149,2]
[356500577,1742562643915,-152.67189728,0.000149,2]
[356500578,1742562643924,-420.0,0.00015033,2]
[356500579,1742562643934,-350.0,0.00016,2]
[356500580,1742562643943,-495.84617072,0.00016386,2]
[356500581,1742562643953,-153.1130232,0.00016386,2]
[356500582,1742562643964,-587.0,0.00016474,2]
[356500583,1742562643973,-215.15308679,0.00016719,2]
[356500585,1742562646136,-836.71991321,0.00016719,2]
[356500586,1742562646146,-642.0,0.00016719,2]
[356500587,1742562646155,-195.59324679,0.00016719,2]
[356500588,1742562646166,-592.22499422,0.00016719,2]
[356500589,1742562646177,-602.0,0.00016719,2]
[356500590,1742562646188,-645.18175899,0.00016719,2]
[356500591,1742562646197,-370.35769249,0.00016719,2]
[356500592,1742562646209,-756.78063558,0.00016719,2]
[356500593,1742562646220,-292.86167193,0.00016719,2]
[356500594,1742562646230,-787.0,0.00016719,2]
[356500595,1742562646239,-593.14832807,0.00016719,2]
[356500596,1742562646249,-419.300818,0.00016719,2]
[356500597,1742562646261,-259.55085393,0.00016719,2]
[356500598,1742562646270,-54.36486962,0.00016719,2]
[356500599,1742562646281,-487.63513038,0.00016719,2]
[356500600,1742562646291,-213.888,0.00016719,2]
[356500601,1742562646300,-1027.858,0.00016719,2]
[356500602,1742562646310,-151.0,0.00016719,2]
[356500603,1742562646319,-1115.0,0.00017091,2]
[356500604,1742562646328,-348.49519412,0.000177,2]
[356500605,1742562646338,-400.0,0.00018,2]
[356500606,1742562646347,-303.0,0.00018054,2]
[356500607,1742562646356,-166.58,0.000186,2]
[356500608,1742562646365,-642.0,0.00019719,2]
[356500609,1742562646375,-2035.0,0.00019719,2]
[356500610,1742562646384,-180.18,0.00019719,2]
[356500611,1742562646393,-290.088,0.00019719,2]
[356500612,1742562646402,-1267.0,0.00019719,2]
[356500613,1742562646411,-151.0,0.00019719,2]
[356500614,1742562646421,-450.0,0.0002,2]
[356500615,1742562646430,-266.289,0.00020091,2]
[356500616,1742562646439,-153.0,0.00021572,2]
[356500617,1742562646448,-153.0,0.00021572,2]
[356500618,1742562646458,-153.0,0.00021572,2]
[356500619,1742562646468,-150.0,0.00021917,2]
[356500620,1742562646477,-500.0,0.00022,2]
[356500622,1742562646487,-642.0,0.00022719,2]
[356500624,1742562646496,-151.0,0.00022719,2]
[356500626,1742562646505,-300.0,0.00022986,2]
[356500628,1742562646515,-205.94,0.00023007,2]
[356500630,1742562646524,-150.0,0.00023287,2]
[356500631,1742562646533,-582.268,0.00023287,3]
[356500633,1742562646542,-200.0,0.00023427,2]
[356500635,1742562646551,-183.28,0.00023521,2]
[356500637,1742562646561,-150.0,0.0002368,7]
[356500639,1742562646570,-23900.0,0.00023687,2]
[356500640,1742562646580,-1000.0,0.00023809,2]
[356500642,1742562646590,-550.0,0.00024,2]
[356500644,1742562646601,-319.52,0.00024024,2]
[356500646,1742562646610,-1852.42,0.0002404,2]
[356500648,1742562646620,-150.0,0.00024381,2]
[356500650,1742562646629,-171.53,0.00024399,2]
[356500652,1742562646639,-423.19258707,0.00024422,2]
[356500654,1742562646648,-482.30682496,0.00024422,2]
[356500656,1742562646658,-9014.03,0.00024423,2]
[356500658,1742562646668,-1029.0341692,0.00024619,30]
[356500660,1742562646679,-150.0,0.00024657,2]
[356500662,1742562646689,-1000.0,0.00024658,2]
[356500664,1742562646698,-162.06,0.00024712,30]
[356500666,1742562646707,-474.47,0.0002505,2]
[356500668,1742562646718,-240.11,0.00025249,2]
[356500670,1742562646728,-2029.72075655,0.00025353,2]
[356500672,1742562646737,-771.26,0.00025509,2]
[356500674,1742562646746,-600.0,0.00025533,2]
[356500676,1742562646754,-576.481,0.00025719,2]
[356500678,1742562646764,-151.0,0.00025719,2]
[356500680,1742562646773,-600.0,0.00026,2]
[356500682,1742562646783,-150.0,0.00026027,2]
[356500684,1742562646791,-200.0,0.00026048,2]
[356500686,1742562646801,-250.0,0.0002674,2]
[356500687,1742562646810,-1000.0,0.00026786,2]
[356500688,1742562646819,-469.84,0.00026849,2]
[356500689,1742562646828,-169.29,0.00026947,2]
[356500690,1742562646838,-150.0,0.00027397,2]
[356500691,1742562646847,-771.26,0.00027773,2]
[356500692,1742562646856,-166.58,0.000279,2]
[356500693,1742562646868,-930.19,0.0002794,2]
[356500694,1742562646877,-650.0,0.00028,2]
[356500695,1742562646890,-368.0,0.00028,2]
[356500696,1742562646900,-751.0,0.00028,2]
[356500697,1742562646911,-174.58,0.00028459,91]
[356500698,1742562646925,-151.0,0.00028719,2]
[356500699,1742562646934,-150.0,0.00028767,2]
[356500700,1742562646943,-419.22,0.00028937,2]
[356500701,1742562646953,-768.45,0.00029009,2]
[356500702,1742562646963,-500.0,0.00029055,2]
[356500703,1742562646973,-930.19,0.00029337,2]
[356500704,1742562646982,-1000.0,0.00029762,2]
[356500705,1742562646992,-150.99,0.00029815,2]
[356500706,1742562647001,-700.0,0.0003,2]
[356500707,1742562647011,-771.26,0.00030037,2]
[356500708,1742562647021,-150.0,0.00030136,2]
[356500709,1742562647030,-930.19,0.00030734,2]
[356500710,1742562647040,-308.40439597,0.000308,120]
[356500711,1742562647050,-500.0,0.00030999,2]
[356500712,1742562647059,-500.0,0.00030999,2]
[356500713,1742562647068,-500.0,0.00030999,2]
[356500714,1742562647078,-500.0,0.00030999,2]
[356500715,1742562647088,-500.0,0.00030999,2]
[356500716,1742562647097,-173.05799093,0.00030999,2]
[356500717,1742562647106,-500.0,0.00030999,2]
[356500718,1742562647115,-500.0,0.00030999,2]
[356500719,1742562647126,-500.0,0.00030999,2]
[356500720,1742562647135,-500.0,0.00030999,2]
[356500721,1742562647145,-500.0,0.00030999,2]
[356500722,1742562647287,-500.0,0.00030999,2]
[356500723,1742562647306,-500.0,0.00030999,2]
[356500724,1742562647316,-500.0,0.00030999,2]
[356500725,1742562647327,-500.0,0.00030999,2]
[356500726,1742562647337,-500.0,0.00030999,2]
[356500727,1742562647347,-600.0,0.00030999,2]
[356500728,1742562647357,-212.0,0.00031,2]
[356500729,1742562647367,-329.488421,0.00031,6]
[356500730,1742562647377,-128288.00078112,0.00031,3]
[356500731,1742562647387,-235.66893625,0.00031004,2]
[356500732,1742562647396,-154.02950627,0.00031104,20]
[356500733,1742562647406,-1681.96988811,0.0003116,3]
[356500734,1742562647416,-316.5384946,0.0003116,2]
[356500735,1742562647425,-169.26026987,0.0003116,2]
[356500736,1742562647434,-351.86187487,0.0003116,3]
[356500737,1742562647771,-4648.13812513,0.0003116,3]
[356500738,1742562647781,-710.58,0.00031173,2]
[356500739,1742562647791,-500.644867,0.000312,6]
[356500740,1742562647800,-1000.0,0.00031233,14]
[356500741,1742562647812,-1000.0,0.00031233,14]
[356500742,1742562647822,-1000.0,0.00031233,14]
[356500743,1742562647832,-1000.0,0.00031233,14]
[356500744,1742562647842,-1000.0,0.00031233,14]
[356500745,1742562647852,-1000.0,0.00031233,14]
[356500746,1742562647861,-1000.0,0.00031233,14]
[356500747,1742562647870,-1000.0,0.00031233,14]
[356500748,1742562647880,-1219.68288647,0.00031233,14]
[356500749,1742562647889,-200.0,0.00031239,2]